[Event "DVM U12w 2023"]
[Site "Magdeburg"]
[Date "2023.12.27"]
[Round "2"]
[White "Ramien, Eva"]
[Black "Kuehne, Malin"]
[Result "1/2-1/2"]
[WhiteElo "1324"]
[BlackElo "1264"]
[PlyCount "39"]
[EventDate "2022.12.27"]
[EventType "team-tourn"]
[EventRounds "7"]
[EventCountry "GER"]
[TimeControl "40/5400+30:1800+30"]
[WhiteClock "1:08:33"]
[BlackClock "0:51:14"]

1. e4 {[%emt 0:00:02]} c6 {[%emt 0:00:09]} 2. Nc3 {[%emt 0:00:10]} d5 {[%emt 0:00:09]} 3. Nf3 {[%emt 0:00:17]} dxe4 {[%emt 0:00:33]} 4. Nxe4 {[%emt 0:00:11]} Nf6 {[%emt 0:01:45]} 5. Nxf6+ {[%emt 0:00:32]} exf6 {[%emt 0:00:11]} 6. g3 {[%emt 0:00:25]} Bd6 {[%emt 0:01:24]} 7. Qe2+ {[%emt 0:00:33]} Qe7 {[%emt 0:03:49]} 8. Qxe7+ {[%emt 0:00:24]} Bxe7 {[%emt 0:00:28]} 9. Bg2 {[%emt 0:00:29]} O-O {[%emt 0:01:21]} 10. O-O {[%emt 0:00:10]} Re8 {[%emt 0:01:45]} 11. Re1 {[%emt 0:00:29]} Bf5 {[%emt 0:02:44]} 12. d3 {[%emt 0:00:18]} Nd7 {[%emt 0:03:44]} 13. Bd2 {[%emt 0:01:06]} Bc5 {[%emt 0:03:46]} 14. b4 {[%emt 0:07:00]} Bd6 {[%emt 0:04:30]} 15. a3 {[%emt 0:00:44]} Nb6 {[%emt 0:02:34]} 16. c4 {[%emt 0:00:58]} Nd7 {[%emt 0:03:19]} 17. c5 {[%emt 0:00:28]} Bc7 {[%emt 0:02:15]} 18. d4 {[%emt 0:00:33]} Be4 {[%emt 0:09:28]} 19. Be3 {[%emt 0:01:27]} f5 {[%emt 0:04:52]} 20. Bd2 {[%emt 0:15:41] normal} 1/2-1/2

[Event "DVM U12w 2023"]
[Site "Magdeburg"]
[Date "2023.12.27"]
[Round "2"]
[White "Werner, Amelie"]
[Black "Nikitina, Alisa"]
[Result "1-0"]
[WhiteElo "1311"]
[BlackElo "1004"]
[PlyCount "39"]
[EventDate "2022.12.27"]
[EventType "team-tourn"]
[EventRounds "7"]
[EventCountry "GER"]
[TimeControl "40/5400+30:1800+30"]
[WhiteClock "1:20:30"]
[BlackClock "1:10:43"]

1. e4 {[%emt 0:00:02]} e5 {[%emt 0:00:03]} 2. Nf3 {[%emt 0:00:09]} Nc6 {[%emt 0:00:03]} 3. Bc4 {[%emt 0:00:10]} Nf6 {[%emt 0:00:23]} 4. Ng5 {[%emt 0:00:08]} d5 {[%emt 0:00:11]} 5. exd5 {[%emt 0:00:06]} Nxd5 {[%emt 0:00:12]} 6. Nxf7 {[%emt 0:00:23]} Kxf7 {[%emt 0:00:22]} 7. Qf3+ {[%emt 0:00:08]} Ke6 {[%emt 0:00:33]} 8. Nc3 {[%emt 0:00:07]} Ncb4 {[%emt 0:03:49]} 9. O-O {[%emt 0:01:19]} Bc5 {[%emt 0:03:30]} 10. a3 {[%emt 0:01:27]} c6 {[%emt 0:02:11]} 11. axb4 {[%emt 0:01:43]} Bxb4 {[%emt 0:00:17]} 12. h3 {[%emt 0:02:26]} Bxc3 {[%emt 0:00:39]} 13. dxc3 {[%emt 0:00:06]} Rf8 {[%emt 0:02:10]} 14. Qg4+ {[%emt 0:01:33]} Kd6 {[%emt 0:02:22]} 15. Qxg7 {[%emt 0:00:30]} Bf5 {[%emt 0:02:23]} 16. Rd1 {[%emt 0:05:37]} Rf6 {[%emt 0:02:03]} 17. Qxb7 {[%emt 0:01:26]} Qg8 {[%emt 0:05:44]} 18. Bxd5 {[%emt 0:01:26]} cxd5 {[%emt 0:01:41]} 19. Ra6+ {[%emt 0:00:15]} Kc5 {[%emt 0:00:41]} 20. Qb4# {[%emt 0:00:59] normal} 1-0

[Event "DVM U12w 2023"]
[Site "Magdeburg"]
[Date "2023.12.27"]
[Round "2"]
[White "Leicher, Anna"]
[Black "Ulianova, Anna"]
[Result "0-1"]
[WhiteElo "1279"]
[BlackElo "1036"]
[PlyCount "38"]
[EventDate "2022.12.27"]
[EventType "team-tourn"]
[EventRounds "7"]
[EventCountry "GER"]
[TimeControl "40/5400+30:1800+30"]
[WhiteClock "1:19:17"]
[BlackClock "0:39:34"]

1. e4 {[%emt 0:00:04]} e5 {[%emt 0:00:02]} 2. Nf3 {[%emt 0:00:06]} Nc6 {[%emt 0:00:41]} 3. d4 {[%emt 0:00:08]} exd4 {[%emt 0:00:13]} 4. Nxd4 {[%emt 0:00:07]} Bc5 {[%emt 0:00:15]} 5. Nxc6 {[%emt 0:00:20]} bxc6 {[%emt 0:00:16]} 6. Bd3 {[%emt 0:00:12]} Nf6 {[%emt 0:00:23]} 7. Bg5 {[%emt 0:00:17]} h6 {[%emt 0:00:21]} 8. Bh4 {[%emt 0:00:12]} d6 {[%emt 0:00:24]} 9. O-O {[%emt 0:01:22]} g5 {[%emt 0:00:51]} 10. Bg3 {[%emt 0:00:14]} h5 {[%emt 0:00:29]} 11. h3 {[%emt 0:00:42]} h4 {[%emt 0:00:13]} 12. Bh2 {[%emt 0:00:07]} g4 {[%emt 0:00:16]} 13. e5 {[%emt 0:01:25]} dxe5 {[%emt 0:02:37]} 14. Bxe5 {[%emt 0:00:57]} gxh3 {[%emt 0:01:06]} 15. Re1 {[%emt 0:02:06]} Be6 {[%emt 0:00:46]} 16. Qf3 {[%emt 0:02:31]} Rh6 {[%emt 0:01:39]} 17. Bf5 {[%emt 0:02:14]} Nd5 {[%emt 0:31:13]} 18. Bxh3 {[%emt 0:02:34]} Qg5 {[%emt 0:15:44]} 19. Qb3 {[%emt 0:05:05]} Rg6 {[%emt 0:02:57] normal} 0-1

[Event "DVM U12w 2023"]
[Site "Magdeburg"]
[Date "2023.12.27"]
[Round "2"]
[White "Wilke, Ronja"]
[Black "Roessling, Laura Marie"]
[Result "0-1"]
[WhiteElo "1224"]
[BlackElo "1232"]
[PlyCount "42"]
[EventDate "2022.12.27"]
[EventType "team-tourn"]
[EventRounds "7"]
[EventCountry "GER"]
[TimeControl "40/5400+30:1800+30"]
[WhiteClock "0:52:21"]
[BlackClock "1:20:45"]

1. e4 {[%emt 0:00:02]} e5 {[%emt 0:00:06]} 2. Nf3 {[%emt 0:00:09]} Nc6 {[%emt 0:00:11]} 3. Bc4 {[%emt 0:00:05]} Bc5 {[%emt 0:00:04]} 4. c3 {[%emt 0:00:05]} Nf6 {[%emt 0:00:07]} 5. d4 {[%emt 0:00:12]} exd4 {[%emt 0:00:05]} 6. e5 {[%emt 0:00:11]} d5 {[%emt 0:00:05]} 7. exf6 {[%emt 0:01:31]} dxc4 {[%emt 0:00:34]} 8. Qe2+ {[%emt 0:00:22]} Be6 {[%emt 0:01:09]} 9. fxg7 {[%emt 0:01:05]} Rg8 {[%emt 0:00:32]} 10. cxd4 {[%emt 0:01:56]} Nxd4 {[%emt 0:01:17]} 11. Nxd4 {[%emt 0:00:39]} Qxd4 {[%emt 0:04:04]} 12. Bh6 {[%emt 0:04:48]} O-O-O {[%emt 0:01:06]} 13. Nc3 {[%emt 0:01:52]} Bg4 {[%emt 0:01:25]} 14. Qc2 {[%emt 0:03:29]} Rde8+ {[%emt 0:01:04]} 15. Be3 {[%emt 0:01:05]} Qxg7 {[%emt 0:01:26]} 16. Qd2 {[%emt 0:08:12]} Rd8 {[%emt 0:02:40]} 17. Qc1 {[%emt 0:03:17]} Bxe3 {[%emt 0:01:08]} 18. Qxe3 {[%emt 0:06:44]} Rge8 {[%emt 0:01:08]} 19. Ne4 {[%emt 0:00:26]} Qxb2 {[%emt 0:01:00]} 20. Rc1 {[%emt 0:10:40]} Rxe4 {[%emt 0:00:56]} 21. Qxe4 {[%emt 0:01:49]} Qxc1# {[%emt 0:00:08] normal} 0-1

[Event "DVM U12w 2023"]
[Site "Magdeburg"]
[Date "2023.12.27"]
[Round "2"]
[White "Korwitz, Pauline"]
[Black "Seyedfakhari, Elena"]
[Result "1/2-1/2"]
[WhiteElo "1219"]
[BlackElo "860"]
[PlyCount "84"]
[EventDate "2022.12.27"]
[EventType "team-tourn"]
[EventRounds "7"]
[EventCountry "GER"]
[TimeControl "40/5400+30:1800+30"]
[WhiteClock "0:49:02"]
[BlackClock "1:33:24"]

1. e4 {[%emt 0:00:04]} e5 {[%emt 0:00:11]} 2. Nf3 {[%emt 0:00:10]} Nc6 {[%emt 0:00:14]} 3. d4 {[%emt 0:00:18]} d6 {[%emt 0:00:32]} 4. dxe5 {[%emt 0:00:21]} Nxe5 {[%emt 0:00:21]} 5. Nxe5 {[%emt 0:00:12]} dxe5 {[%emt 0:00:14]} 6. Qxd8+ {[%emt 0:00:10]} Kxd8 {[%emt 0:00:07]} 7. Bc4 {[%emt 0:01:19]} Bg4 {[%emt 0:00:21]} 8. f3 {[%emt 0:01:07]} Be6 {[%emt 0:00:30]} 9. Bxe6 {[%emt 0:01:00]} fxe6 {[%emt 0:00:11]} 10. Nc3 {[%emt 0:02:07]} Kd7 {[%emt 1:32:49]} 11. a3 {[%emt 0:00:59]} Rd8 {[%emt 0:00:00]} 12. Bg5 {[%emt 0:01:54]} Be7 {[%emt 0:00:00]} 13. Rd1+ {[%emt 0:03:04]} Kc8 {[%emt 0:00:00]} 14. Rxd8+ {[%emt 0:01:26]} Bxd8 {[%emt 0:00:00]} 15. Bxd8 {[%emt 0:02:04]} Kxd8 {[%emt 0:00:00]} 16. O-O {[%emt 0:01:04]} Kc8 {[%emt 0:00:00]} 17. Rd1 {[%emt 0:01:22]} Nf6 {[%emt 0:00:00]} 18. Kf2 {[%emt 0:01:52]} Rd8 {[%emt 0:00:00]} 19. Rxd8+ {[%emt 0:00:32]} Kxd8 {[%emt 0:00:00]} 20. Ke3 {[%emt 0:00:30]} c5 {[%emt 0:00:00]} 21. Kd3 {[%emt 0:01:39]} Kd7 {[%emt 0:00:00]} 22. b4 {[%emt 0:01:40]} cxb4 {[%emt 0:00:00]} 23. axb4 {[%emt 0:00:08]} Kd6 {[%emt 0:00:00]} 24. Nb5+ {[%emt 0:04:33]} Kc6 {[%emt 0:00:00]} 25. c4 {[%emt 0:01:56]} a6 {[%emt 0:00:00]} 26. Nc3 {[%emt 0:04:14]} b5 {[%emt 0:00:00]} 27. cxb5+ {[%emt 0:01:51]} axb5 {[%emt 0:00:00]} 28. Ke3 {[%emt 0:01:30]} g5 {[%emt 0:00:00]} 29. h3 {[%emt 0:01:32]} h5 {[%emt 0:00:00]} 30. g4 {[%emt 0:04:52]} hxg4 {[%emt 0:00:00]} 31. hxg4 {[%emt 0:00:39]} Kd6 {[%emt 0:00:00]} 32. Nxb5+ {[%emt 0:01:39]} Kc6 {[%emt 0:00:00]} 33. Nc3 {[%emt 0:00:18]} Nd7 {[%emt 0:00:00]} 34. Kd3 {[%emt 0:02:18]} Nb6 {[%emt 0:00:00]} 35. b5+ {[%emt 0:05:15]} Kc5 {[%emt 0:00:00]} 36. Kc2 {[%emt 0:01:10]} Nc4 {[%emt 0:00:00]} 37. Kb3 {[%emt 0:02:36]} Nd2+ {[%emt 0:00:00]} 38. Ka4 {[%emt 0:00:15]} Nxf3 {[%emt 0:00:00]} 39. Ka5 {[%emt 0:00:26]} Nd4 {[%emt 0:00:00]} 40. Ka6 {[%emt 0:00:33]} Kb4 {[%emt 0:00:00]} 41. Na2+ {[%emt 0:30:54]} Kc5 {[%emt 0:00:00]} 42. b6 {[%emt 0:00:55]} Kc6 {[%emt 0:00:00] normal} 1/2-1/2

[Event "DVM U12w 2023"]
[Site "Magdeburg"]
[Date "2023.12.27"]
[Round "2"]
[White "Cao, Weiqi"]
[Black "Scharfenberg, Leah"]
[Result "1-0"]
[WhiteElo "1191"]
[BlackElo "755"]
[PlyCount "73"]
[EventDate "2022.12.27"]
[EventType "team-tourn"]
[EventRounds "7"]
[EventCountry "GER"]
[TimeControl "40/5400+30:1800+30"]
[WhiteClock "1:12:34"]
[BlackClock "1:03:44"]

1. d4 {[%emt 0:00:02]} c5 {[%emt 0:00:05]} 2. c3 {[%emt 0:00:20]} b6 {[%emt 0:01:25]} 3. Nf3 {[%emt 0:00:34]} Nf6 {[%emt 0:00:20]} 4. g3 {[%emt 0:00:12]} e6 {[%emt 0:03:00]} 5. Bg2 {[%emt 0:00:25]} Bb7 {[%emt 0:00:21]} 6. O-O {[%emt 0:00:22]} Bd6 {[%emt 0:00:45]} 7. Nbd2 {[%emt 0:01:01]} O-O {[%emt 0:00:28]} 8. Nc4 {[%emt 0:00:33]} Be7 {[%emt 0:00:25]} 9. Re1 {[%emt 0:00:38]} d5 {[%emt 0:03:55]} 10. Nce5 {[%emt 0:01:02]} Bd6 {[%emt 0:00:21]} 11. Be3 {[%emt 0:00:57]} Re8 {[%emt 0:01:35]} 12. Qb3 {[%emt 0:02:39]} Nc6 {[%emt 0:01:13]} 13. dxc5 {[%emt 0:02:37]} Bxc5 {[%emt 0:00:34]} 14. Bxc5 {[%emt 0:00:26]} bxc5 {[%emt 0:00:34]} 15. Qxb7 {[%emt 0:00:28]} Nxe5 {[%emt 0:00:27]} 16. Nxe5 {[%emt 0:00:11]} Qd6 {[%emt 0:00:35]} 17. Nf3 {[%emt 0:00:46]} Reb8 {[%emt 0:00:34]} 18. Qxa8 {[%emt 0:01:31]} Rxa8 {[%emt 0:00:07]} 19. Rad1 {[%emt 0:00:33]} Rb8 {[%emt 0:00:32]} 20. e4 {[%emt 0:00:24]} Qa6 {[%emt 0:01:09]} 21. exd5 {[%emt 0:01:05]} Nxd5 {[%emt 0:00:32]} 22. Nh4 {[%emt 0:01:06]} Nc7 {[%emt 0:01:03]} 23. a3 {[%emt 0:00:25]} Ne8 {[%emt 0:02:20]} 24. Rd2 {[%emt 0:00:49]} h5 {[%emt 0:04:23]} 25. Bf3 {[%emt 0:00:59]} g6 {[%emt 0:00:30]} 26. Be2 {[%emt 0:00:53]} Qc6 {[%emt 0:00:44]} 27. Bf3 {[%emt 0:00:30]} Qc7 {[%emt 0:00:26]} 28. Red1 {[%emt 0:00:35]} Qa5 {[%emt 0:02:44]} 29. Ng2 {[%emt 0:03:05]} Nf6 {[%emt 0:02:39]} 30. Ne3 {[%emt 0:00:52]} e5 {[%emt 0:03:03]} 31. Nc4 {[%emt 0:00:31]} Qa4 {[%emt 0:00:36]} 32. Nxe5 {[%emt 0:00:55]} g5 {[%emt 0:04:11]} 33. Rd6 {[%emt 0:01:06]} Ne8 {[%emt 0:02:30]} 34. R6d5 {[%emt 0:02:19]} Rxb2 {[%emt 0:00:00]} 35. Bxh5 {[%emt 0:01:00]} Qc2 {[%emt 0:00:20]} 36. Bxf7+ {[%emt 0:00:51]} Kf8 {[%emt 0:00:20]} 37. Rf1 {[%emt 0:03:44] normal} 1-0

[Event "DVM U12w 2023"]
[Site "Magdeburg"]
[Date "2023.12.27"]
[Round "2"]
[White "Wolf, Helena"]
[Black "Satheesh, Yazhini"]
[Result "1-0"]
[WhiteElo "1188"]
[BlackElo "859"]
[PlyCount "93"]
[EventDate "2022.12.27"]
[EventType "team-tourn"]
[EventRounds "7"]
[EventCountry "GER"]
[TimeControl "40/5400+30:1800+30"]
[WhiteClock "1:17:04"]
[BlackClock "1:13:22"]

1. e4 {[%emt 0:00:02]} e5 {[%emt 0:00:11]} 2. Nf3 {[%emt 0:00:04]} Nc6 {[%emt 0:00:17]} 3. Bc4 {[%emt 0:00:09]} Bc5 {[%emt 0:00:14]} 4. c3 {[%emt 0:00:13]} Nf6 {[%emt 0:00:24]} 5. d4 {[%emt 0:04:14]} exd4 {[%emt 0:02:26]} 6. O-O {[%emt 0:00:39]} dxc3 {[%emt 0:02:26]} 7. e5 {[%emt 0:00:33]} Ng4 {[%emt 0:01:25]} 8. Bxf7+ {[%emt 0:01:08]} Kxf7 {[%emt 0:02:07]} 9. Qd5+ {[%emt 0:00:39]} Ke8 {[%emt 0:01:47]} 10. Qxc5 {[%emt 0:02:00]} cxb2 {[%emt 0:01:59]} 11. Bxb2 {[%emt 0:00:27]} Qe7 {[%emt 0:01:43]} 12. Qxe7+ {[%emt 0:03:37]} Nxe7 {[%emt 0:00:33]} 13. h3 {[%emt 0:01:28]} Nh6 {[%emt 0:00:44]} 14. Nc3 {[%emt 0:01:42]} Nc6 {[%emt 0:03:06]} 15. Nb5 {[%emt 0:01:37]} Kd8 {[%emt 0:01:36]} 16. Rfe1 {[%emt 0:01:27]} a6 {[%emt 0:00:28]} 17. Nc3 {[%emt 0:00:59]} Nf7 {[%emt 0:01:54]} 18. Rad1 {[%emt 0:01:21]} Ke7 {[%emt 0:01:15]} 19. Nd5+ {[%emt 0:01:18]} Kd8 {[%emt 0:01:47]} 20. e6 {[%emt 0:03:08]} dxe6 {[%emt 0:00:34]} 21. Nb6+ {[%emt 0:00:13]} Ke7 {[%emt 0:01:06]} 22. Nxa8 {[%emt 0:00:21]} Bd7 {[%emt 0:01:13]} 23. Nxc7 {[%emt 0:00:21]} Rc8 {[%emt 0:00:40]} 24. Nd5+ {[%emt 0:00:36]} Kf8 {[%emt 0:00:53]} 25. Nb6 {[%emt 0:01:03]} Rd8 {[%emt 0:00:38]} 26. Rxd7 {[%emt 0:00:26]} Rxd7 {[%emt 0:00:25]} 27. Nxd7+ {[%emt 0:00:07]} Ke7 {[%emt 0:00:33]} 28. Nc5 {[%emt 0:00:14]} Ncd8 {[%emt 0:00:51]} 29. Bxg7 {[%emt 0:00:22]} Nd6 {[%emt 0:00:51]} 30. Ng5 {[%emt 0:01:01]} h5 {[%emt 0:00:22]} 31. Ngxe6 {[%emt 0:00:29]} Nxe6 {[%emt 0:00:29]} 32. Rxe6+ {[%emt 0:00:10]} Kf7 {[%emt 0:00:16]} 33. Rxd6 {[%emt 0:00:35]} Kxg7 {[%emt 0:00:10]} 34. Nxb7 {[%emt 0:00:09]} h4 {[%emt 0:00:45]} 35. Rxa6 {[%emt 0:00:09]} Kf7 {[%emt 0:00:10]} 36. Rd6 {[%emt 0:00:19]} Ke7 {[%emt 0:00:33]} 37. Rd1 {[%emt 0:00:06]} Ke6 {[%emt 0:00:15]} 38. a4 {[%emt 0:00:11]} Ke7 {[%emt 0:00:25]} 39. a5 {[%emt 0:00:07]} Ke6 {[%emt 0:00:10]} 40. a6 {[%emt 0:00:04]} Ke7 {[%emt 0:00:45]} 41. a7 {[%emt 0:30:35]} Ke6 {[%emt 0:00:13]} 42. a8=Q {[%emt 0:00:05]} Ke7 {[%emt 0:00:13]} 43. Qd8+ {[%emt 0:00:31]} Ke6 {[%emt 0:30:32]} 44. Rd5 {[%emt 0:00:54]} Kf7 {[%emt 0:00:16]} 45. Rd6 {[%emt 0:00:26]} Kg7 {[%emt 0:00:15]} 46. Qe7+ {[%emt 0:00:05]} Kg8 {[%emt 0:00:13]} 47. Rd8# {[%emt 0:00:32] normal} 1-0

[Event "DVM U12w 2023"]
[Site "Magdeburg"]
[Date "2023.12.27"]
[Round "2"]
[White "Ruddat, Maila"]
[Black "Grunert, Greta"]
[Result "1-0"]
[WhiteElo "1187"]
[BlackElo "1288"]
[PlyCount "35"]
[EventDate "2022.12.27"]
[EventType "team-tourn"]
[EventRounds "7"]
[EventCountry "GER"]
[TimeControl "40/5400+30:1800+30"]
[WhiteClock "1:06:51"]
[BlackClock "0:50:34"]

1. e4 {[%emt 0:00:07]} c6 {[%emt 0:00:07]} 2. d4 {[%emt 0:00:11]} d5 {[%emt 0:00:12]} 3. exd5 {[%emt 0:00:39]} cxd5 {[%emt 0:00:16]} 4. Bd3 {[%emt 0:00:33]} Nc6 {[%emt 0:00:40]} 5. c3 {[%emt 0:00:42]} Nf6 {[%emt 0:02:36]} 6. Bf4 {[%emt 0:04:24]} Bg4 {[%emt 0:00:53]} 7. Nf3 {[%emt 0:01:13]} e6 {[%emt 0:03:26]} 8. h3 {[%emt 0:03:39]} Bh5 {[%emt 0:06:13]} 9. Nbd2 {[%emt 0:02:13]} Bd6 {[%emt 0:11:04]} 10. Bxd6 {[%emt 0:01:51]} Qxd6 {[%emt 0:00:26]} 11. Qb3 {[%emt 0:01:07]} Qc7 {[%emt 0:03:08]} 12. c4 {[%emt 0:01:51]} O-O {[%emt 0:04:35]} 13. O-O {[%emt 0:02:01]} Rac8 {[%emt 0:04:07]} 14. cxd5 {[%emt 0:02:31]} Nxd5 {[%emt 0:01:28]} 15. Be4 {[%emt 0:01:41]} Nf6 {[%emt 0:04:25]} 16. Rac1 {[%emt 0:02:46]} Qd7 {[%emt 0:03:50]} 17. Bxc6 {[%emt 0:02:50]} Rxc6 {[%emt 0:01:00]} 18. Ne5 {[%emt 0:02:20] normal} 1-0

[Event "DVM U12w 2023"]
[Site "Magdeburg"]
[Date "2023.12.27"]
[Round "2"]
[White "Wieckowicz, Bui Havy"]
[Black "Burchardi, Helena"]
[Result "0-1"]
[WhiteElo "1175"]
[BlackElo "1370"]
[PlyCount "44"]
[EventDate "2022.12.27"]
[EventType "team-tourn"]
[EventRounds "7"]
[EventCountry "GER"]
[TimeControl "40/5400+30:1800+30"]
[WhiteClock "1:09:24"]
[BlackClock "1:19:30"]

1. e4 {[%emt 0:00:02]} e5 {[%emt 0:00:10]} 2. Nf3 {[%emt 0:00:05]} Nc6 {[%emt 0:00:08]} 3. Bc4 {[%emt 0:00:11]} Bc5 {[%emt 0:00:09]} 4. O-O {[%emt 0:00:16]} Nf6 {[%emt 0:00:18]} 5. d3 {[%emt 0:00:16]} O-O {[%emt 0:00:20]} 6. c3 {[%emt 0:00:06]} d6 {[%emt 0:00:19]} 7. Bg5 {[%emt 0:00:23]} Be6 {[%emt 0:00:14]} 8. Nbd2 {[%emt 0:00:14]} Qd7 {[%emt 0:03:24]} 9. Qc2 {[%emt 0:01:24]} Ne7 {[%emt 0:00:53]} 10. Rfe1 {[%emt 0:03:48]} Ng6 {[%emt 0:00:47]} 11. d4 {[%emt 0:01:02]} Bb6 {[%emt 0:02:49]} 12. h3 {[%emt 0:01:39]} h6 {[%emt 0:04:03]} 13. Bxf6 {[%emt 0:01:03]} gxf6 {[%emt 0:00:12]} 14. d5 {[%emt 0:00:30]} Bxh3 {[%emt 0:00:20]} 15. gxh3 {[%emt 0:10:25]} Qxh3 {[%emt 0:00:18]} 16. Nh2 {[%emt 0:02:21]} Nf4 {[%emt 0:02:11]} 17. Bf1 {[%emt 0:00:51]} Qg3+ {[%emt 0:00:52]} 18. Kh1 {[%emt 0:01:23]} Bxf2 {[%emt 0:00:36]} 19. Ndf3 {[%emt 0:00:54]} Kh7 {[%emt 0:02:08]} 20. Re2 {[%emt 0:01:22]} Nxe2 {[%emt 0:00:46]} 21. Bxe2 {[%emt 0:01:30]} Rg8 {[%emt 0:00:43]} 22. Bd3 {[%emt 0:02:21]} Qg2# {[%emt 0:00:20] normal} 0-1

[Event "DVM U12w 2023"]
[Site "Magdeburg"]
[Date "2023.12.27"]
[Round "2"]
[White "Oschinski, Mathilda"]
[Black "Schmegel, Alina"]
[Result "1-0"]
[WhiteElo "1155"]
[BlackElo "892"]
[PlyCount "46"]
[EventDate "2022.12.27"]
[EventType "team-tourn"]
[EventRounds "7"]
[EventCountry "GER"]
[TimeControl "40/5400+30:1800+30"]
[WhiteClock "0:45:12"]
[BlackClock "1:19:04"]

1. d4 {[%emt 0:00:02]} d5 {[%emt 0:00:05]} 2. Nc3 {[%emt 0:00:07]} Nf6 {[%emt 0:00:04]} 3. Bf4 {[%emt 0:00:07]} Nc6 {[%emt 0:00:11]} 4. Nb5 {[%emt 0:00:08]} e5 {[%emt 0:00:17]} 5. dxe5 {[%emt 0:00:15]} Nh5 {[%emt 0:00:14]} 6. e3 {[%emt 0:02:44]} Nxf4 {[%emt 0:00:37]} 7. exf4 {[%emt 0:00:32]} d4 {[%emt 0:00:45]} 8. Nf3 {[%emt 0:01:28]} Bb4+ {[%emt 0:00:31]} 9. Nd2 {[%emt 0:00:45]} a6 {[%emt 0:08:21]} 10. Na3 {[%emt 0:07:27]} f5 {[%emt 0:00:00]} 11. Bd3 {[%emt 0:06:37]} O-O {[%emt 0:00:00]} 12. O-O {[%emt 0:01:38]} Qh4 {[%emt 0:00:00]} 13. Bc4+ {[%emt 0:07:55]} Kh8 {[%emt 0:00:00]} 14. Nf3 {[%emt 0:04:49]} Qh5 {[%emt 0:00:00]} 15. Nxd4 {[%emt 0:03:42]} Qh6 {[%emt 0:00:53]} 16. Nxc6 {[%emt 0:01:25]} bxc6 {[%emt 0:00:11]} 17. Qf3 {[%emt 0:02:00]} Rb8 {[%emt 0:05:13]} 18. c3 {[%emt 0:02:01]} Bc5 {[%emt 0:00:34]} 19. b4 {[%emt 0:01:31]} Be7 {[%emt 0:00:37]} 20. Rad1 {[%emt 0:01:57]} Bb7 {[%emt 0:01:50]} 21. Rd7 {[%emt 0:04:22]} Rfe8 {[%emt 0:01:30]} 22. Rxc7 {[%emt 0:02:18]} Bd8 {[%emt 0:00:55]} 23. Rxb7 {[%emt 0:02:58]} Rxb7 {[%emt 0:00:08] normal} 1-0

[Event "DVM U12w 2023"]
[Site "Magdeburg"]
[Date "2023.12.27"]
[Round "2"]
[White "Mersmann, Jasmin"]
[Black "Prasannavenkatesan, Ananya"]
[Result "0-1"]
[WhiteElo "1131"]
[BlackElo "1045"]
[PlyCount "78"]
[EventDate "2022.12.27"]
[EventType "team-tourn"]
[EventRounds "7"]
[EventCountry "GER"]
[TimeControl "40/5400+30:1800+30"]
[WhiteClock "1:07:27"]
[BlackClock "1:12:53"]

1. e4 {[%emt 0:00:06]} e5 {[%emt 0:00:03]} 2. Nf3 {[%emt 0:00:10]} Nc6 {[%emt 0:00:07]} 3. Nc3 {[%emt 0:00:26]} Nf6 {[%emt 0:00:07]} 4. Bb5 {[%emt 0:00:12]} d6 {[%emt 0:02:40]} 5. h3 {[%emt 0:00:19]} g6 {[%emt 0:00:37]} 6. d3 {[%emt 0:00:13]} Bg7 {[%emt 0:00:22]} 7. O-O {[%emt 0:00:12]} O-O {[%emt 0:00:13]} 8. Bg5 {[%emt 0:00:09]} h6 {[%emt 0:00:07]} 9. Be3 {[%emt 0:00:17]} g5 {[%emt 0:02:27]} 10. Qd2 {[%emt 0:00:28]} Nh5 {[%emt 0:03:35]} 11. Nd5 {[%emt 0:01:16]} Nf4 {[%emt 0:02:36]} 12. Bxf4 {[%emt 0:00:27]} exf4 {[%emt 0:00:45]} 13. c3 {[%emt 0:01:07]} Ne5 {[%emt 0:01:45]} 14. Nxe5 {[%emt 0:01:19]} dxe5 {[%emt 0:00:17]} 15. Bc4 {[%emt 0:00:33]} c6 {[%emt 0:00:45]} 16. Nb4 {[%emt 0:01:13]} a5 {[%emt 0:02:06]} 17. Nxc6 {[%emt 0:08:09]} bxc6 {[%emt 0:00:29]} 18. Kh2 {[%emt 0:00:38]} g4 {[%emt 0:00:34]} 19. Rg1 {[%emt 0:00:49]} gxh3 {[%emt 0:01:29]} 20. g3 {[%emt 0:01:36]} f3 {[%emt 0:02:39]} 21. Qe3 {[%emt 0:00:32]} Bg4 {[%emt 0:00:26]} 22. Qc5 {[%emt 0:01:02]} Qc7 {[%emt 0:01:01]} 23. Bd5 {[%emt 0:01:06]} Rac8 {[%emt 0:00:47]} 24. Bb3 {[%emt 0:00:33]} Rfd8 {[%emt 0:00:41]} 25. Bc4 {[%emt 0:01:08]} Bf8 {[%emt 0:01:23]} 26. Qe3 {[%emt 0:01:36]} Bg7 {[%emt 0:00:24]} 27. Rad1 {[%emt 0:00:25]} Rb8 {[%emt 0:00:39]} 28. Rd2 {[%emt 0:00:26]} Kh7 {[%emt 0:01:38]} 29. Qc5 {[%emt 0:08:27]} Bf6 {[%emt 0:00:29]} 30. Rb1 {[%emt 0:01:27]} Be7 {[%emt 0:00:24]} 31. Qe3 {[%emt 0:01:34]} Bg5 {[%emt 0:00:09]} 32. Qe1 {[%emt 0:00:28]} Bxd2 {[%emt 0:00:21]} 33. Qxd2 {[%emt 0:00:07]} Rb6 {[%emt 0:00:30]} 34. Qe3 {[%emt 0:00:21]} Rdb8 {[%emt 0:00:15]} 35. b3 {[%emt 0:01:24]} a4 {[%emt 0:00:13]} 36. b4 {[%emt 0:00:13]} c5 {[%emt 0:00:45]} 37. a3 {[%emt 0:00:37]} cxb4 {[%emt 0:01:19]} 38. cxb4 {[%emt 0:01:02]} Qd7 {[%emt 0:00:44]} 39. Rc1 {[%emt 0:00:26]} f6 {[%emt 0:01:16] normal} 0-1